bitfinex/quotes_BTCUSD_20241025
["timestamp","ask_amount","ask_price","bid_price","bid_amount"]
[1729828966611,0.86134913,68001.0,68000.0,0.000825]
[1729828970561,0.84757259,68001.0,68000.0,0.000825]
[1729828971661,0.87410104,68001.0,68000.0,0.000825]
[1729828971907,0.51834617,68001.0,68000.0,0.000825]
[1729828972099,0.41371772,68001.0,68000.0,0.000825]
[1729828972307,0.58937489,68001.0,68000.0,0.000825]
[1729828972445,0.51542499,68001.0,68000.0,0.000825]
[1729828975490,0.50165338,68001.0,68000.0,0.000825]
[1729828975690,0.51542509,68001.0,68000.0,0.000825]
[1729828976099,0.42771327,68001.0,68000.0,0.000825]
[1729828978212,0.53735005,68001.0,68000.0,0.000825]
[1729828978631,0.51546317,68001.0,68000.0,0.000825]
[1729828978835,0.33164143,68001.0,68000.0,0.000825]
[1729828979035,0.26082771,68001.0,68000.0,0.000825]
[1729828979463,0.16082771,68001.0,68000.0,0.000825]
[1729828979808,0.147056,68001.0,68000.0,0.097625]
[1729828980931,0.147056,68001.0,68000.0,0.180925]
[1729828982666,0.04388179,68008.0,68000.0,0.180925]
[1729828982860,0.147056,68001.0,68000.0,0.180925]
[1729828984497,0.294091,68006.0,68000.0,0.185925]
[1729828984699,0.147049,68005.0,68002.0,0.10295106]
[1729828985014,0.147052,68003.0,68002.0,0.10295106]
[1729828985427,0.147048,68005.0,68002.0,0.10295106]
[1729828985625,0.147049,68005.0,68002.0,0.10795106]
[1729828985855,0.14705,68004.0,68002.0,0.10795106]
[1729828986276,0.147052,68003.0,68002.0,0.10795106]
[1729828986636,0.147052,68003.0,68002.0,0.005]
[1729828987212,0.147048,68005.0,68002.0,0.005]
[1729828987376,0.22040187,68011.0,68002.0,0.005]
[1729828987580,0.147052,68003.0,68002.0,0.005]
[1729828988190,0.147047,68006.0,68002.0,0.005]
[1729828988389,0.294096,68005.0,68002.0,0.005]
[1729828988632,0.14705,68004.0,68002.0,0.005]
[1729828988802,0.147052,68003.0,68002.0,0.005]
[1729828991451,0.147049,68005.0,68002.0,0.005]
[1729828991667,0.294088,68007.0,68002.0,0.10795106]
[1729828991878,0.04386807,68017.0,68007.0,0.0761]
[1729828992087,0.51447387,68011.0,68009.0,0.10295106]
[1729828992305,0.04551807,68019.0,68012.0,0.005]
[1729828992505,0.147026,68015.0,68014.0,0.10295106]
[1729828992884,0.294039,68018.0,68012.0,0.005]
[1729828992885,0.14703,68014.0,68012.0,0.005]
[1729828993090,0.294044,68017.0,68012.0,0.005]
[1729828993240,0.14703,68013.0,68012.0,0.005]
[1729828995185,0.294048,68016.0,68012.0,0.005]
[1729828995382,0.294044,68017.0,68012.0,0.005]
[1729828995383,0.14703,68013.0,68012.0,0.005]
[1729829001100,0.147041,68008.0,68007.0,0.1778]
[1729829001307,0.147052,68003.0,68002.0,0.01]
[1729829001749,0.147056,68001.0,68000.0,0.005825]
[1729829001950,0.147056,68001.0,68000.0,0.000825]
[1729829002329,0.147056,68001.0,68000.0,0.010825]
[1729829002542,0.147056,68001.0,68000.0,0.000825]
[1729829009639,0.14033665,68001.0,68000.0,0.000825]
[1729829016783,0.294103,68004.0,68000.0,0.000825]
[1729829017018,0.147054,68003.0,68000.0,0.000825]
[1729829017416,0.294088,68007.0,68000.0,0.000825]
[1729829017618,0.147053,68003.0,68000.0,0.000825]
[1729829017816,0.294091,68006.0,68000.0,0.000825]
[1729829018069,0.147053,68003.0,68000.0,0.000825]
[1729829018603,0.147056,68001.0,68000.0,0.000825]
[1729829019189,0.294096,68005.0,68000.0,0.000825]
[1729829019190,0.147053,68003.0,68000.0,0.000825]
[1729829021773,0.147056,68001.0,68000.0,0.000825]
[1729829027847,0.148706,68001.0,68000.0,0.000825]
[1729829033124,0.00165,68001.0,68000.0,0.000825]
[1729829038925,0.00165,68001.0,68000.0,0.10877606]
[1729829039137,0.00165,68001.0,68000.0,0.19057606]
[1729829041589,0.00165,68001.0,68000.0,0.087625]
[1729829043407,0.148706,68001.0,68000.0,0.005825]
[1729829043626,0.148706,68001.0,68000.0,0.000825]
[1729829044644,0.57316087,68001.0,68000.0,0.000825]
[1729829044840,0.47020981,68001.0,68000.0,0.000825]
[1729829049497,0.51409271,68001.0,68000.0,0.000825]
[1729829049699,0.47020981,68001.0,68000.0,0.000825]
[1729829053978,0.57520981,68001.0,68000.0,0.000825]
[1729829054187,0.59726047,68001.0,68000.0,0.000825]
[1729829054618,0.75924736,68001.0,68000.0,0.000825]
[1729829054904,0.7371967,68001.0,68000.0,0.000825]
[1729829055772,0.82494526,68001.0,68000.0,0.000825]
[1729829056009,0.8249453,68001.0,68000.0,0.000825]
[1729829056231,0.7371967,68001.0,68000.0,0.000825]
[1729829056441,0.82493093,68001.0,68000.0,0.000825]
[1729829056869,0.7371967,68001.0,68000.0,0.000825]
[1729829057075,0.82491867,68001.0,68000.0,0.000825]
[1729829057511,0.7371967,68001.0,68000.0,0.000825]
[1729829058348,0.73709206,68001.0,68000.0,0.000825]
[1729829058578,0.73709153,68001.0,68000.0,0.000825]
[1729829058769,0.73709053,68001.0,68000.0,0.000825]
[1729829059002,0.57520981,68001.0,68000.0,0.000825]
[1729829059213,0.73709133,68001.0,68000.0,0.000825]
[1729829059433,0.57520981,68001.0,68000.0,0.000825]
[1729829059643,0.73707408,68001.0,68000.0,0.000825]
[1729829060074,0.57520981,68001.0,68000.0,0.000825]
[1729829060320,0.64097691,68001.0,68000.0,0.000825]
[1729829062783,0.56567691,68001.0,68000.0,0.000825]
[1729829063223,0.49990981,68001.0,68000.0,0.000825]
[1729829063457,0.54374745,68001.0,68000.0,0.000825]
[1729829063665,0.49990981,68001.0,68000.0,0.000825]
[1729829064125,0.44804751,68001.0,68000.0,0.000825]
[1729829064739,0.40420981,68001.0,68000.0,0.000825]
[1729829069120,0.253706,68001.0,68000.0,0.000825]
[1729829070152,0.2975421,68001.0,68000.0,0.000825]
[1729829070373,0.253706,68001.0,68000.0,0.000825]
[1729829072171,0.2975421,68001.0,68000.0,0.000825]
[1729829072376,0.253706,68001.0,68000.0,0.000825]
[1729829078760,0.40420981,68001.0,68000.0,0.000825]
[1729829079601,0.42625399,68001.0,68000.0,0.000825]
[1729829079811,0.40420981,68001.0,68000.0,0.000825]
[1729829080484,0.46996454,68001.0,68000.0,0.000825]
[1729829080886,0.40420981,68001.0,68000.0,0.000825]
[1729829081723,0.46996454,68001.0,68000.0,0.000825]
[1729829082701,0.40420981,68001.0,68000.0,0.000825]
[1729829083579,0.46997369,68001.0,68000.0,0.000825]
[1729829085921,0.253706,68001.0,68000.0,0.000825]
[1729829086161,0.31946988,68001.0,68000.0,0.000825]
[1729829086397,0.253706,68001.0,68000.0,0.000825]
[1729829087337,0.31946988,68001.0,68000.0,0.000825]
[1729829088035,0.31948553,68001.0,68000.0,0.000825]
[1729829089211,0.253706,68001.0,68000.0,0.000825]
[1729829090368,0.41565632,68001.0,68000.0,0.000825]
[1729829091247,0.50336236,68001.0,68000.0,0.000825]
[1729829092757,0.50341531,68001.0,68000.0,0.000825]
[1729829094071,0.65391912,68001.0,68000.0,0.000825]
[1729829095182,0.67598358,68001.0,68000.0,0.000825]
[1729829095646,0.69804822,68001.0,68000.0,0.000825]
[1729829095872,0.67598358,68001.0,68000.0,0.000825]
[1729829096332,0.65391912,68001.0,68000.0,0.000825]
[1729829097304,0.56616952,68001.0,68000.0,0.000825]
[1729829097797,0.56622863,68001.0,68000.0,0.000825]
[1729829099149,0.67595566,68001.0,68000.0,0.000825]
[1729829104731,0.6897472,68001.0,68000.0,0.000825]
[1729829106137,0.68985124,68001.0,68000.0,0.000825]
[1729829106715,0.5800822,68001.0,68000.0,0.000825]
[1729829108785,0.58008305,68001.0,68000.0,0.000825]
[1729829109453,0.67088305,68001.0,68000.0,0.000825]
[1729829109882,0.67288305,68001.0,68000.0,0.000825]
[1729829110098,0.67088305,68001.0,68000.0,0.000825]
[1729829111062,0.67086814,68001.0,68000.0,0.000825]
[1729829112481,0.67086716,68001.0,68000.0,0.000825]
[1729829113794,0.74786716,68001.0,68000.0,0.000825]
[1729829116211,0.73407575,68001.0,68000.0,0.000825]
[1729829116435,0.74786519,68001.0,68000.0,0.000825]
[1729829119006,0.74986519,68001.0,68000.0,0.000825]
[1729829119834,0.74786435,68001.0,68000.0,0.000825]
[1729829121477,0.74986435,68001.0,68000.0,0.000825]
[1729829122702,0.77288785,68001.0,68000.0,0.000825]
[1729829122916,0.77088785,68001.0,68000.0,0.000825]
[1729829123902,0.90383891,68001.0,68000.0,0.000825]
[1729829124318,0.90183891,68001.0,68000.0,0.000825]
[1729829124520,0.90383891,68001.0,68000.0,0.000825]
[1729829125230,0.90183891,68001.0,68000.0,0.000825]
[1729829125373,0.90183891,68001.0,68000.0,0.0023538]
[1729829126390,0.79348357,68001.0,68000.0,0.0023538]
[1729829126569,0.89181357,68001.0,68000.0,0.0023538]
[1729829127821,0.83810297,68001.0,68000.0,0.0023538]
[1729829128035,0.81074423,68001.0,68000.0,0.0023538]
[1729829128251,0.91369529,68001.0,68000.0,0.0023538]
[1729829128682,0.75177297,68001.0,68000.0,0.0023538]
[1729829129114,0.74977297,68001.0,68000.0,0.0023538]
[1729829129521,0.75177297,68001.0,68000.0,0.0023538]
[1729829130723,0.63503331,68001.0,68000.0,0.0023538]
[1729829130926,0.75175159,68001.0,68000.0,0.0023538]
[1729829133373,0.91352391,68001.0,68000.0,0.0023538]
[1729829133590,0.91152391,68001.0,68000.0,0.0023538]
[1729829134511,0.91150681,68001.0,68000.0,0.0023538]
[1729829134725,0.91350681,68001.0,68000.0,0.0023538]
[1729829135668,0.91150681,68001.0,68000.0,0.0023538]
[1729829136118,0.91350681,68001.0,68000.0,0.0023538]
[1729829136337,0.90350681,68001.0,68000.0,0.0023538]
[1729829136622,0.91350681,68001.0,68000.0,0.0023538]
[1729829136846,0.90850681,68001.0,68000.0,0.0023538]
[1729829137068,0.91350681,68001.0,68000.0,0.0023538]
[1729829137784,0.91150681,68001.0,68000.0,0.0023538]
[1729829138005,0.90650681,68001.0,68000.0,0.0023538]
[1729829138460,0.91150681,68001.0,68000.0,0.0023538]
[1729829139344,0.74975159,68001.0,68000.0,0.0023538]
[1729829139570,1.04284399,68001.0,68000.0,0.0023538]
[1729829140046,0.91343867,68001.0,68000.0,0.0023538]
[1729829140290,1.04484038,68001.0,68000.0,0.0023538]
[1729829140530,0.91343867,68001.0,68000.0,0.0023538]
[1729829140776,0.75175159,68001.0,68000.0,0.0023538]
[1729829141021,1.04482459,68001.0,68000.0,0.0023538]
[1729829141467,1.03982459,68001.0,68000.0,0.0023538]
[1729829141693,1.04482459,68001.0,68000.0,0.0023538]
[1729829141908,1.04482279,68001.0,68000.0,0.0023538]
[1729829142129,1.04282279,68001.0,68000.0,0.0023538]
[1729829142611,1.04282213,68001.0,68000.0,0.0023538]
[1729829143141,0.91142934,68001.0,68000.0,0.0023538]
[1729829144072,0.91342934,68001.0,68000.0,0.0023538]
[1729829144288,1.04281045,68001.0,68000.0,0.0023538]
[1729829144731,0.91142154,68001.0,68000.0,0.0023538]
[1729829145235,0.91342154,68001.0,68000.0,0.0023538]
[1729829145723,0.91342201,68001.0,68000.0,0.0023538]
[1729829145951,1.03480935,68001.0,68000.0,0.0023538]
[1729829146164,0.90842201,68001.0,68000.0,0.0023538]
[1729829146618,0.91342201,68001.0,68000.0,0.0023538]
[1729829146845,1.04480935,68001.0,68000.0,0.0023538]
[1729829147052,0.91342201,68001.0,68000.0,0.0023538]
[1729829147487,1.04480935,68001.0,68000.0,0.0023538]
[1729829147919,0.91342201,68001.0,68000.0,0.0023538]
[1729829148573,0.76471601,68001.0,68000.0,0.0023538]
[1729829148780,0.91177201,68001.0,68000.0,0.0023538]
[1729829149242,0.91177951,68001.0,68000.0,0.0023538]
[1729829150310,0.90977951,68001.0,68000.0,0.0023538]
[1729829151854,0.91177951,68001.0,68000.0,0.0023538]
[1729829152071,0.72182845,68001.0,68000.0,0.0023538]
[1729829152283,0.82477951,68001.0,68000.0,0.0023538]
[1729829152938,0.81101182,68001.0,68000.0,0.0023538]
[1729829153169,0.8247975,68001.0,68000.0,0.0023538]
[1729829154001,0.82482703,68001.0,68000.0,0.0023538]
[1729829154217,0.82647703,68001.0,68000.0,0.0023538]
[1729829154653,0.82447703,68001.0,68000.0,0.0023538]
[1729829154861,0.82647703,68001.0,68000.0,0.0023538]
[1729829155303,0.92942809,68001.0,68000.0,0.0023538]
[1729829156642,0.92742809,68001.0,68000.0,0.0023538]
[1729829156848,0.92942809,68001.0,68000.0,0.0023538]
[1729829158815,0.92746811,68001.0,68000.0,0.0023538]
[1729829158990,1.01036811,68001.0,68000.0,0.0023538]
[1729829162409,0.90741705,68001.0,68000.0,0.0023538]
[1729829163569,0.99574705,68001.0,68000.0,0.0023538]
[1729829163771,0.90741705,68001.0,68000.0,0.0023538]
[1729829163986,0.90941705,68001.0,68000.0,0.0023538]
[1729829164638,0.60276599,68001.0,68000.0,0.0023538]
[1729829164851,0.62577244,68001.0,68000.0,0.0023538]
[1729829165065,0.7287235,68001.0,68000.0,0.0023538]
[1729829165501,0.7307235,68001.0,68000.0,0.0023538]
[1729829165932,0.7287235,68001.0,68000.0,0.0023538]
[1729829166974,0.72886194,68001.0,68000.0,0.0023538]
[1729829167650,0.87687148,68001.0,68000.0,0.0023538]
[1729829167867,0.73086194,68001.0,68000.0,0.0023538]
[1729829168055,0.72886194,68001.0,68000.0,0.0023538]
[1729829168524,0.87687148,68001.0,68000.0,0.0023538]
[1729829168731,0.72886194,68001.0,68000.0,0.0023538]
[1729829169419,0.73086194,68001.0,68000.0,0.0023538]
[1729829169656,0.72886194,68001.0,68000.0,0.0023538]
[1729829171713,0.72895601,68001.0,68000.0,0.0023538]
[1729829172122,0.82445556,68001.0,68000.0,0.0023538]
[1729829172885,0.82245556,68001.0,68000.0,0.0023538]
[1729829174885,0.82445556,68001.0,68000.0,0.0023538]
[1729829175518,0.92740662,68001.0,68000.0,0.0023538]
[1729829176358,0.92540662,68001.0,68000.0,0.0023538]
[1729829177458,0.90238312,68001.0,68000.0,0.0023538]
[1729829178118,0.90238312,68001.0,67984.0,0.000832]
[1729829178119,0.005,67986.0,67984.0,0.000832]
[1729829178330,0.28011,67976.0,67975.0,0.000832]
[1729829178566,0.37807006,67972.0,67971.0,0.22040187]
[1729829178783,0.53084125,67972.0,67971.0,0.22040187]
[1729829179001,0.252121,67971.0,67970.0,0.075]
[1729829179212,0.41410051,67971.0,67970.0,0.075]
[1729829179429,0.42789219,67971.0,67970.0,0.075]
[1729829180094,0.51052317,67971.0,67970.0,0.075]
[1729829180311,0.147121,67971.0,67970.0,0.075]
[1729829188677,0.33800753,67976.0,67971.0,0.0946]
[1729829188878,0.33797936,67980.0,67976.0,0.0801]
[1729829189136,0.36750987,67977.0,67976.0,0.0801]
[1729829189357,0.147108,67977.0,67976.0,0.0801]
[1729829189584,0.04377536,67982.0,67976.0,0.1747]
[1729829189804,0.06566344,67984.0,67976.0,0.1747]
[1729829189805,0.14377536,67984.0,67978.0,0.10295106]
[1729829190023,0.147102,67980.0,67979.0,0.0801]
[1729829196792,0.252108,67977.0,67976.0,0.000825]
[1729829197008,0.68093234,67977.0,67976.0,0.000825]
[1729829197240,0.76848588,67977.0,67976.0,0.000825]
[1729829197466,0.68093272,67977.0,67976.0,0.000825]
[1729829197691,0.41137682,67977.0,67976.0,0.000825]
[1729829197910,0.45515226,67977.0,67976.0,0.000825]
[1729829198134,0.39761181,67977.0,67976.0,0.000825]
[1729829198356,0.44638725,67977.0,67976.0,0.000825]
[1729829198582,0.46015207,67977.0,67976.0,0.000825]
[1729829199968,0.46015113,67977.0,67976.0,0.000825]
[1729829201098,0.30464787,67977.0,67976.0,0.000825]
[1729829201312,0.260874,67977.0,67976.0,0.000825]
[1729829201736,0.30964761,67977.0,67976.0,0.000825]
[1729829201940,0.265874,67977.0,67976.0,0.000825]
[1729829202154,0.30964751,67977.0,67976.0,0.000825]
[1729829203245,0.20464751,67977.0,67976.0,0.000825]
[1729829203460,0.147108,67977.0,67976.0,0.000825]
[1729829207688,0.147108,67977.0,67976.0,0.076825]
[1729829209454,0.147108,67977.0,67976.0,0.000825]
[1729829221541,0.20469311,67977.0,67976.0,0.000825]
[1729829221958,0.16088958,67977.0,67976.0,0.000825]
[1729829222853,0.147108,67977.0,67976.0,0.000825]
[1729829223082,0.16088992,67977.0,67976.0,0.000825]
[1729829225413,0.22660537,67977.0,67976.0,0.000825]
[1729829225625,0.22825537,67977.0,67976.0,0.000825]
[1729829227820,0.20636653,67977.0,67976.0,0.000825]
[1729829228028,0.01543192,67977.0,67976.0,0.000825]
[1729829228266,0.00165,67977.0,67976.0,0.000825]
[1729829228476,0.00165,67977.0,67976.0,0.10393243]
[1729829230252,0.00165,67977.0,67976.0,0.25104243]
[1729829230476,0.00165,67977.0,67976.0,0.39334892]
[1729829230704,0.00165,67977.0,67976.0,0.24623892]
[1729829230955,0.00165,67977.0,67976.0,0.39334892]
[1729829231180,0.00165,67977.0,67976.0,0.24623892]
[1729829235202,0.00165,67977.0,67976.0,0.096625]
[1729829235433,0.148758,67977.0,67976.0,0.096625]
[1729829235655,0.00165,67977.0,67976.0,0.096625]
[1729829235888,0.148758,67977.0,67976.0,0.096625]
[1729829236108,0.00165,67977.0,67976.0,0.096625]
[1729829237204,0.148758,67977.0,67976.0,0.096625]
[1729829238605,0.00165,67977.0,67976.0,0.096625]
[1729829239714,0.148758,67977.0,67976.0,0.096625]
[1729829240129,0.00165,67977.0,67976.0,0.096625]
[1729829240976,0.02467766,67977.0,67976.0,0.096625]
[1729829244019,0.02467766,67977.0,67976.0,0.25123892]
[1729829244229,0.02467766,67977.0,67976.0,0.25418082]
[1729829244438,0.02467766,67977.0,67976.0,0.25123892]
[1729829245062,0.02467766,67977.0,67976.0,0.101625]
[1729829245327,0.02467766,67977.0,67976.0,0.39834892]
[1729829245506,0.02467766,67977.0,67976.0,0.25123892]
[1729829245923,0.02467766,67977.0,67976.0,0.39834892]
[1729829246144,0.02467766,67977.0,67976.0,0.30254892]
[1729829246373,0.00165,67977.0,67976.0,0.38939056]
[1729829246621,0.00165,67977.0,67976.0,0.47814892]
[1729829247956,0.00165,67977.0,67976.0,0.48661176]
[1729829249567,0.00165,67977.0,67976.0,0.63711557]
[1729829252464,0.00165,67977.0,67976.0,0.59058344]
[1729829254591,0.00165,67977.0,67976.0,0.69366523]
[1729829256667,0.00165,67977.0,67976.0,0.59058344]
[1729829257328,0.00165,67977.0,67976.0,0.69366523]
[1729829257558,0.00165,67977.0,67976.0,0.59058344]
[1729829258467,0.00165,67977.0,67976.0,0.69366523]
[1729829258675,0.00165,67977.0,67976.0,0.59058344]
[1729829260119,0.00165,67977.0,67976.0,0.69366523]
[1729829260952,0.00165,67977.0,67976.0,0.48750165]
[1729829261173,0.00165,67977.0,67976.0,0.59058344]
[1729829272036,0.00165,67977.0,67976.0,0.69366523]
[1729829272493,0.00165,67977.0,67976.0,0.59258344]
[1729829273429,0.00165,67977.0,67976.0,0.59058344]
[1729829274600,0.00165,67977.0,67976.0,0.69366523]
[1729829277194,0.00165,67977.0,67976.0,0.59058344]
[1729829277405,0.00165,67977.0,67976.0,0.69366523]
[1729829277624,0.00165,67977.0,67976.0,0.73957364]
[1729829278878,0.00165,67977.0,67976.0,0.63649185]
[1729829279285,0.00165,67977.0,67976.0,0.73957364]
[1729829279495,0.00165,67977.0,67976.0,0.63649185]
[1729829279713,0.00165,67977.0,67976.0,0.73957364]
[1729829280344,0.00165,67977.0,67976.0,0.63649185]
[1729829283265,0.00165,67977.0,67976.0,0.54479185]
[1729829285139,0.00165,67977.0,67976.0,0.46589185]
[1729829289681,0.00165,67977.0,67976.0,0.50990176]
[1729829290705,0.00165,67977.0,67976.0,0.46589185]
[1729829291567,0.00165,67977.0,67976.0,0.53192857]
[1729829292012,0.00165,67977.0,67976.0,0.27834297]
[1729829292284,0.00165,67977.0,67976.0,0.35949626]
[1729829297466,0.00165,67977.0,67976.0,0.31538804]
[1729829300414,0.00165,67977.0,67976.0,0.21230625]
[1729829300622,0.00165,67977.0,67976.0,0.005825]
[1729829300623,0.18135,67977.0,67976.0,0.005825]
[1729829300839,0.18135,67977.0,67976.0,0.010825]
[1729829302130,0.18135,67977.0,67976.0,0.005825]
[1729829302325,0.328458,67977.0,67976.0,0.000825]
[1729829302978,0.18135,67977.0,67976.0,0.000825]
[1729829307019,0.20437802,67977.0,67976.0,0.000825]
[1729829323131,0.02467802,67977.0,67976.0,0.2589589]
[1729829323337,0.00165,67977.0,67976.0,0.25601679]
[1729829325720,0.00165,67977.0,67976.0,0.4065206]
[1729829325944,0.00165,67977.0,67976.0,0.51460239]
[1729829326172,0.00165,67977.0,67976.0,0.68550239]
[1729829326380,0.00165,67977.0,67976.0,0.5824206]
[1729829326616,0.00165,67977.0,67976.0,0.59075021]
[1729829327274,0.00165,67977.0,67976.0,0.693832]
[1729829328131,0.00165,67977.0,67976.0,0.48766842]
[1729829328335,0.00165,67977.0,67976.0,0.693832]
[1729829329182,0.00165,67977.0,67976.0,0.30843881]
[1729829329393,0.00165,67977.0,67976.0,0.010825]
[1729829329601,0.148758,67977.0,67976.0,0.000825]
[1729829329806,0.241958,67977.0,67976.0,0.000825]
[1729829337764,0.324458,67977.0,67976.0,0.000825]
[1729829338165,0.33822653,67977.0,67976.0,0.000825]
[1729829338367,0.324458,67977.0,67976.0,0.000825]
[1729829347312,0.3432199,67977.0,67976.0,0.000825]
[1729829348230,0.329458,67977.0,67976.0,0.000825]
[1729829349003,0.34321758,67977.0,67976.0,0.000825]
[1729829349193,0.34321766,67977.0,67976.0,0.000825]
[1729829351292,0.329458,67977.0,67976.0,0.000825]
[1729829351489,0.34321526,67977.0,67976.0,0.000825]
[1729829352611,0.329458,67977.0,67976.0,0.000825]
[1729829352787,0.34321472,67977.0,67976.0,0.000825]
[1729829353963,0.34321503,67977.0,67976.0,0.000825]
[1729829355252,0.329458,67977.0,67976.0,0.000825]
[1729829355454,0.3432165,67977.0,67976.0,0.000825]
[1729829356159,0.329458,67977.0,67976.0,0.000825]
[1729829356356,0.34321808,67977.0,67976.0,0.000825]
[1729829359323,0.34323761,67977.0,67976.0,0.000825]
[1729829363117,0.329458,67977.0,67976.0,0.000825]
[1729829363278,0.34324294,67977.0,67976.0,0.000825]
[1729829366919,0.34324539,67977.0,67976.0,0.000825]
[1729829367553,0.4937492,67977.0,67976.0,0.000825]
[1729829367772,0.66258861,67977.0,67976.0,0.000825]
[1729829367981,0.51580902,67977.0,67976.0,0.000825]
[1729829368414,0.55950508,67977.0,67976.0,0.000825]
[1729829368818,0.51580902,67977.0,67976.0,0.000825]
[1729829370506,0.58135572,67977.0,67976.0,0.000825]
[1729829372361,0.67718705,67977.0,67976.0,0.000825]
[1729829373434,0.78026884,67977.0,67976.0,0.000825]
[1729829373787,0.61889081,67977.0,67976.0,0.000825]
[1729829374246,0.75826735,67977.0,67976.0,0.000825]
[1729829374454,0.78033108,67977.0,67976.0,0.000825]
[1729829374915,1.05122841,67977.0,67976.0,0.000825]
[1729829375091,1.15122841,67977.0,67976.0,0.000825]
[1729829375441,1.041844,67977.0,67976.0,0.000825]
[1729829375624,0.88040764,67977.0,67976.0,0.000825]
[1729829375891,0.88046775,67977.0,67976.0,0.000825]
[1729829377928,0.77738596,67977.0,67976.0,0.000825]
[1729829378129,0.74153484,67977.0,67976.0,0.000825]
[1729829378456,0.77738928,67977.0,67976.0,0.000825]
[1729829384988,0.69488928,67977.0,67976.0,0.000825]
[1729829385189,0.60168928,67977.0,67976.0,0.000825]
[1729829385642,0.71114369,67977.0,67976.0,0.000825]
[1729829385826,0.60168928,67977.0,67976.0,0.000825]
[1729829386025,0.68925409,67977.0,67976.0,0.000825]
[1729829386227,0.60168928,67977.0,67976.0,0.000825]
[1729829386427,0.71114369,67977.0,67976.0,0.000825]
[1729829386629,0.73417501,67977.0,67976.0,0.000825]
[1729829386804,0.6247206,67977.0,67976.0,0.000825]
[1729829389243,0.58886616,67977.0,67976.0,0.000825]
[1729829389438,0.60265741,67977.0,67976.0,0.000825]
[1729829389643,0.62472342,67977.0,67976.0,0.000825]
[1729829390364,0.62479164,67977.0,67976.0,0.000825]
[1729829392978,0.62479437,67977.0,67976.0,0.000825]
[1729829395202,0.62483864,67977.0,67976.0,0.000825]
[1729829397380,0.60181587,67977.0,67976.0,0.000825]
[1729829401822,0.56595588,67977.0,67976.0,0.000825]
[1729829402170,0.60181735,67977.0,67976.0,0.000825]
[1729829403141,0.63767905,67977.0,67976.0,0.000825]
[1729829403344,0.60183043,67977.0,67976.0,0.000825]
[1729829408129,0.6018346,67977.0,67976.0,0.000825]
[1729829408593,0.6018365,67977.0,67976.0,0.000825]
[1729829419823,0.5659729,67977.0,67976.0,0.000825]
[1729829420215,0.60183938,67977.0,67976.0,0.000825]
[1729829422816,0.70023938,67977.0,67976.0,0.000825]
[1729829423547,0.3211,67976.0,67975.0,0.00047953]
[1729829423786,0.152138,67963.0,67956.0,0.22040187]
[1729829424018,0.4781477,67963.0,67956.0,0.22040187]
[1729829424250,0.50021938,67963.0,67956.0,0.22040187]
[1729829424492,0.58778605,67963.0,67955.0,0.094732]
[1729829425223,0.56571437,67963.0,67955.0,0.094732]
[1729829425438,0.56571437,67963.0,67955.0,0.000832]
[1729829425647,0.4781477,67963.0,67955.0,0.000832]
[1729829426535,0.38208645,67963.0,67955.0,0.000832]
[1729829428172,0.38208645,67963.0,67955.0,0.00919446]
[1729829429480,0.31643661,67963.0,67955.0,0.00919446]
[1729829431488,0.36020808,67963.0,67955.0,0.00919446]
[1729829433502,0.36020808,67963.0,67955.0,0.000832]
[1729829434888,0.45860808,67963.0,67955.0,0.000832]
[1729829435111,0.56168987,67963.0,67955.0,0.000832]
[1729829435599,0.5179184,67963.0,67955.0,0.000832]
[1729829438207,0.6179184,67963.0,67955.0,0.000832]
[1729829441442,0.6972184,67963.0,67955.0,0.000832]
[1729829442305,0.84772221,67963.0,67955.0,0.000832]
[1729829442508,0.6992184,67963.0,67955.0,0.000832]
[1729829443420,0.72124506,67963.0,67955.0,0.000832]
[1729829443563,0.71924506,67963.0,67955.0,0.000832]
[1729829445251,0.6854236,67963.0,67955.0,0.000832]
[1729829445460,0.8579556,67963.0,67955.0,0.000832]
[1729829445821,0.87172322,67963.0,67955.0,0.000832]
[1729829447395,0.87830381,67963.0,67955.0,0.000832]
[1729829448363,0.7278,67963.0,67955.0,0.000832]
[1729829451781,0.72121941,67963.0,67955.0,0.000832]
[1729829452584,0.72123562,67963.0,67955.0,0.000832]
[1729829452776,0.005,67956.0,67955.0,0.000832]
[1729829453028,0.40265781,67956.0,67955.0,0.000832]
[1729829453248,0.41643166,67956.0,67955.0,0.000832]
[1729829457645,0.50793166,67956.0,67955.0,0.000832]
[1729829457845,0.55300825,67956.0,67955.0,0.000832]
[1729829459779,0.55300954,67956.0,67955.0,0.000832]
[1729829461033,0.46150954,67956.0,67955.0,0.000832]
[1729829461240,0.43947058,67956.0,67955.0,0.000832]
[1729829461814,0.41643216,67956.0,67955.0,0.000832]
[1729829464271,0.40265781,67956.0,67955.0,0.000832]
[1729829464486,0.41643548,67956.0,67955.0,0.000832]
[1729829465187,0.40265781,67956.0,67955.0,0.000832]
[1729829465405,0.5057396,67956.0,67955.0,0.000832]
[1729829465639,0.65471007,67956.0,67955.0,0.000832]
[1729829465854,0.5972396,67956.0,67955.0,0.000832]
[1729829466508,0.6627772,67956.0,67955.0,0.000832]
[1729829466732,0.77790427,67956.0,67955.0,0.000832]
[1729829467517,0.71236667,67956.0,67955.0,0.000832]
[1729829468199,0.87377725,67956.0,67955.0,0.000832]
[1729829468664,0.97685904,67956.0,67955.0,0.000832]
[1729829468882,0.87377725,67956.0,67955.0,0.000832]
[1729829469578,0.98381011,67956.0,67955.0,0.000832]
[1729829469827,0.87377725,67956.0,67955.0,0.000832]
[1729829470529,1.00685904,67956.0,67955.0,0.000832]
[1729829470765,0.005,67954.0,67950.0,0.000832]
[1729829471030,0.442729,67951.0,67950.0,0.000832]
[1729829471267,0.79047046,67951.0,67950.0,0.000832]
[1729829473336,0.54157667,67951.0,67950.0,0.000832]
[1729829473607,0.79052892,67951.0,67950.0,0.000832]
[1729829475658,0.70304536,67951.0,67950.0,0.000832]
[1729829476366,0.79053973,67951.0,67950.0,0.000832]
[1729829476591,0.70304536,67951.0,67950.0,0.000832]
[1729829477049,0.8177221,67951.0,67950.0,0.000832]
[1729829477291,0.85358236,67951.0,67950.0,0.000832]
[1729829477491,0.70307855,67951.0,67950.0,0.000832]
[1729829478397,0.7030778,67951.0,67950.0,0.000832]
[1729829478609,0.81256045,67951.0,67950.0,0.000832]
[1729829480408,0.70315423,67951.0,67950.0,0.000832]